Cogmind - Beta 16 @@@ ROGUE MODE // 2026.02.08 @ 21:56:05 Player: RHAHI Result: Destroyed by YY-XRM(R) with Subdweller Beam Cannon Performance ------------- Evolutions (0) 0 Regions Visited (2) 400 Robots Destroyed (33) 165 Value Destroyed (601) 601 Prototype IDs (3) 60 Alien Tech Used (0) 0 Bonus (0) 0 TOTAL SCORE: 1226 Bonus ------- None Cogmind --------- Core Integrity 0/250 Matter 245/300 Energy 167/200 System Corruption 0% Temperature Cool (9) Movement Core (3550) Ox70 Location -10/Subcaves Parts ------- > --- POWER (1) -------- Subdweller Power Source > --- PROPULSION (2) --- Subdweller Monowheel Subdweller Monowheel > --- UTILITY (2) ------ Humpback > --- WEAPON (2) ------- Subdweller Laser Subdweller Laser > --- INVENTORY (35) --- Grenade Launcher Multitool Shrapnel Trap Peak State ------------ > --- POWER ------------ Subdweller Power Source > --- PROPULSION ------- Subdweller Monowheel Subdweller Monowheel > --- UTILITY ---------- Scrap Shield > --- WEAPON ----------- Subdweller Laser Subdweller Laser > --- INVENTORY -------- Structural Scanner Makeshift Hacking Suite Makeshift Laser Barrage Gun Grenade Launcher [Rating: 15] Favorites ----------- Power Subdweller Power Source Engine Subdweller Power Source Propulsion Subdweller Monowheel Treads Light Treads Leg Aluminum Leg Wheel Subdweller Monowheel Hover Unit Hover Unit Utility Scrap Shield Device Seismic Detector Storage Humpback Processor Targeting Computer Protection Scrap Shield Weapon Subdweller Laser Energy Gun Subdweller Laser Ballistic Gun Light Assault Rifle Launcher Grenade Launcher Special Weapon Mining Laser Build | -11 -10 -10 ------- Run | Yrd Mat Sub Slots Evolved . | . . . Power . | . . . Propulsion . | . . . Utility . | . . . Weapon . | . . . Parts Attached 36 | 8 15 13 Power 7 | 1 2 4 Engine 7 | 1 2 4 Core . | . . . Reactor . | . . . Propulsion 9 | 3 4 2 Treads 2 | . 2 . Leg 3 | 2 1 . Wheel 3 | 1 . 2 Hover 1 | . 1 . Flight . | . . . Utility 9 | 2 4 3 Device 3 | 2 1 . Storage 1 | . . 1 Processor 2 | . 2 . Hackware . | . . . Protection 3 | . 1 2 Artifact . | . . . Weapon 11 | 2 5 4 Energy Gun 5 | 1 . 4 Energy Cannon . | . . . Ballistic Gun 4 | 1 3 . Ballistic Cannon . | . . . Launcher 1 | . 1 . Special Weapon 1 | . 1 . Impact Weapon . | . . . Slashing Weapon . | . . . Piercing Weapon . | . . . Special Melee Weapon . | . . . Unidentified Prototypes . | . . . Parts Lost 7 | . 1 6 Power 1 | . . 1 Propulsion 3 | . . 3 Utility 1 | . . 1 Weapon 2 | . 1 1 Highest Loss Streak 3 | . 1 3 To Critical Strikes . | . . . Average Backups 4 | 4 4 4 Power . | . . . Propulsion . | 1 1 . Utility 1 | . . 1 Weapon 1 | 1 1 1 Tool/Special . | . . . Unused Backups 6 | . 2 4 Power 1 | . 1 . Propulsion . | . . . Utility 1 | . . 1 Weapon 3 | . 1 2 Tool/Special 1 | . . 1 Average Slot Usage (%) 92 | . 99 90 Engine 13 | . 14 13 Treads 9 | . 12 7 Leg 5 | . 15 . Wheel 13 | . . 18 Device 10 | . 19 6 Processor 2 | . 7 . Protection 8 | . . 12 Energy Gun 18 | . 5 24 Ballistic Gun 7 | . 16 3 Special Weapon 2 | . 5 . Peak Build Rating 15 | 9 9 15 Average Rating 10 | 6 7 12 On Entrance 5 | . 9 7 Avg Prop Armor Cover (%) 8 | . 12 5 Naked Turns . | . . . Heaviest Build 31 | 8 10 31 Greatest Support 40 | 20 20 40 Greatest Overweight (x) 10 | 1 2 10 Average Overweight (x) 1 | . . 3 Largest Inventory Capacity 35 | 5 5 35 Average Capacity 5 | 5 5 5 Most Carried 5 | 5 5 5 Average Carried 4 | 4 4 4 Final Capacity 35 | 5 5 35 Final Carried 5 | 5 5 3 Class Distribution -------------------- 43% | Subdweller-Mutant 36% | Mutant 20% | Scavenger-Mutant Dominant Class ---------------- Mutant | -10/Materials Subdweller-Mutant | -10/Subcaves Resources | -11 -10 -10 ----------- Run | Yrd Mat Sub Matter Collected 941 | 248 329 364 Remotely . | . . . Salvage Created 872 | 69 581 222 Parts 63 | 8 35 20 Haulers Intercepted 2 | . 2 . Recyclers Shooed . | . . . Parts Field Recycled . | . . . Retrieved Matter . | . . . Parts Self-Destructed 8 | . . 8 Prevented . | . . . Parts Restored . | . . . Kills | -11 -10 -10 ------- Run | Yrd Mat Sub Combat Hostiles Destroyed 22 | . 11 11 Guns 16 | . 9 7 AOE 6 | . 2 4 Classes Destroyed 8 | 1 6 1 Builder 1 | . 1 . Tunneler 4 | 4 . . Hauler 2 | . 2 . Recycler 1 | . 1 . Watcher 3 | . 3 . Swarmer 12 | . 5 7 Grunt 6 | . 6 . Subdweller 4 | . . 4 Best Kill Streak 4 | 3 4 4 Combat Bots Only 4 | . 4 4 Max Kills in Single Turn 3 | 1 2 3 Gunslinging . | . . . Exploded 3 | . 2 3 Melee . | . . . Uniques/NPCs Destroyed . | . . . Combat | -11 -10 -10 -------- Run | Yrd Mat Sub Hostile Shots Fired 135 | . 59 76 Missed 34 | . 14 20 Hits 101 | . 45 56 Projectile 101 | . 45 56 AOE 2 | . . 2 Critical Strikes 2 | . 1 1 Damage Taken 1559 | . 488 1071 Core 273 | . 106 167 Absorbed by Shields . | . . . Redirected to Shielding 22 | . . 22 Regen/Repaired (Parts) 124 | . 124 . Core Remaining (%) 100 | 100 . . Volleys Fired 130 | 10 72 48 Largest 2 | 2 2 2 Hottest 120 | 70 120 120 Shots Fired 239 | 20 139 80 Gun 228 | 20 132 76 Cannon . | . . . Launcher 5 | . 1 4 Special 6 | . 6 . Kinetic 137 | 10 92 35 Thermal 97 | 10 46 41 Explosive 5 | . 1 4 Electromagnetic . | . . . Robot Hit Streak 30 | 3 8 30 Robot Miss Streak 9 | 1 9 2 Penetration Max . | . . . Secondary Targets 2 | . 2 . Max Gunslinging Chain 1 | . 1 . Shots Hit Robots 141 | 12 71 58 Core Hits 56 | 6 32 18 Critical Kills . | . . . Critical Parts Destroyed . | . . . Critical Strikes 3 | . 2 1 Burn 2 | . 2 . Destroy 1 | . . 1 Melee Attacks . | . . . Impact . | . . . Slashing . | . . . Piercing . | . . . Sneak Attacks . | . . . Combat Hostiles . | . . . Follow-up Attacks . | . . . Damage Inflicted 1912 | 127 792 993 Guns 1636 | 127 719 790 Cannons . | . . . Explosions 271 | . 68 203 Melee . | . . . Ramming 5 | . 5 . Kinetic 757 | 38 430 289 Thermal 879 | 89 289 501 Explosive 271 | . 68 203 Electromagnetic . | . . . Impact . | . . . Slashing . | . . . Piercing . | . . . Highest Corruption . | . . . Average Corruption . | . . . Corruption Purged . | . . . Corruption Blocked . | . . . Overload Shots . | . . . Overflow Damage 5 | . . 5 Projectiles . | . . . Explosions 5 | . . 5 Melee . | . . . Knockbacks . | . . . Impact . | . . . Kinetic . | . . . Secondary . | . . . Self-Inflicted Damage . | . . . Shots . | . . . Rammed . | . . . Targets Rammed 1 | . 1 . Kicked 1 | . 1 . Crushed . | . . . Highest Temperature 188 | 60 188 12 Average Temperature 40 | 24 46 5 Received Heat Transfer 456 | . 198 258 Siege Activations . | . . . Martial Activations . | . . . Shielding Activations . | . . . Robots Disrupted . | . . . Combat Hostiles . | . . . Robots Corrupted . | . . . Combat Hostiles . | . . . Parts Fried . | . . . Impact Corruptions . | . . . Robots Melted . | . . . Combat Hostiles . | . . . Parts Melted 5 | . 2 3 Heat Transferred 1883 | 259 999 625 Parts Sabotaged . | . . . Parts Stolen . | . . . Parts Stripped . | . . . Power Chain Reactions . | . . . Alert | -11 -10 -10 ------- Run | Yrd Mat Sub Maximum Alert Level . | . . . Low Security (%) 100 | 100 100 . Level 1 . | . . . Level 2 . | . . . Level 3 . | . . . Level 4 . | . . . Level 5 . | . . . High Security . | . . . Max Security . | . . . Peak Influence 165 | 5 165 . Initial . | . . . Average 41 | . 45 . Influence Increases 577 | 20 377 180 Destroy 0b10 Robot/C 360 | . 220 140 Destroy 0b10 Robot/NC 55 | 20 35 . Destroy Leader 50 | . 40 10 Successful Hack 37 | . 37 . Destroy Structure 15 | . 15 . Partial Spotted 15 | . 15 . Lose Combat Pursuer 45 | . 15 30 Influence Decreases 577 | 20 377 180 Time Decay 527 | 20 367 140 Lost Part 50 | . 10 40 Squads Dispatched . | . . . Investigation . | . . . Extermination . | . . . Reinforcement . | . . . Assault . | . . . Garrison . | . . . Intercept . | . . . Searches Triggered . | . . . Construction Impeded . | . . . Haulers Reinforced . | . . . Active Scanning Responses . | . . . Cargo Convoy Interrupts . | . . . Stealth | -11 -10 -10 --------- Run | Yrd Mat Sub Distress Signals 2 | . 2 . Communications Jammed . | . . . Distress Signals . | . . . Times Spotted 32 | . 18 14 Peak Tracking Total 6 | . 4 6 Tactical Retreats 2 | . 1 1 Traps | -11 -10 -10 ------- Run | Yrd Mat Sub Traps Triggered 1 | . . 1 Indirectly . | . . . Trap Hack Attempts . | . . . Triggered . | . . . Disarmed . | . . . Reprogrammed . | . . . Reused . | . . . Traps Extracted . | . . . Installed . | . . . Triggered . | . . . Most Traps Carried 1 | . . 1 Machines | -11 -10 -10 ---------- Run | Yrd Mat Sub Machines Disabled . | . . . Max in Single Turn . | . . . Machines Repaired . | . . . Machines Dismantled . | . . . Machines Sabotaged . | . . . Overloaded Fab Kills . | . . . Hacking | -11 -10 -10 --------- Run | Yrd Mat Sub Machines Accessed 11 | . 11 . Terminals 8 | . 8 . Fabricators . | . . . Repair Stations 1 | . 1 . Recycling Units 2 | . 2 . Scanalyzers . | . . . Garrison Access . | . . . Total Hacks 32 | . 32 . Successful 21 | . 21 . Failed 10 | . 10 . Catastrophic . | . . . Database Lockouts 1 | . 1 . Manual 24 | . 24 . Terminals 28 | . 28 . Fabricators . | . . . Repair Stations 2 | . 2 . Recycling Units 2 | . 2 . Scanalyzers . | . . . Garrison Access . | . . . Terminal Hacks 6 | . 6 . Robot Schematic 1 | . 1 . Robot Analysis 1 | . 1 . Prototype ID Bank 3 | . 3 . Locate Traps 1 | . 1 . Fabricator Hacks . | . . . Repair Station Hacks 2 | . 2 . Scan Component 1 | . 1 . Repair 1 | . 1 . Recycling Unit Hacks . | . . . Scanalyzer . | . . . Garrison Access Hacks . | . . . Unauthorized Hacks 13 | . 13 . Terminals 11 | . 11 . Track 1 | . 1 . Botnet 3 | . 3 . Operators 2 | . 2 . Skim 5 | . 5 . Fabricators . | . . . Repair Stations . | . . . Recycling Units 2 | . 2 . Reject 2 | . 2 . Scanalyzers . | . . . Garrison Access . | . . . Data Cores Recovered . | . . . Used . | . . . Hacking Detections 9 | . 9 . Full Trace Events . | . . . Feedback Events . | . . . Feedback Blocked . | . . . Robot Schematics Acquired 1 | . 1 . Robots Built . | . . . Authchips . | . . . Time . | . . . Total Robot Build Rating . | . . . Part Schematics Acquired . | . . . Parts Built . | . . . Authchips . | . . . Time . | . . . Total Part Build Rating . | . . . Part Studies Acquired . | . . . Parts Repaired 1 | . 1 . Time 26 | . 26 . Parts Recycled . | . . . Recycled Matter . | . . . Retrieved Matter . | . . . Retrieved Components . | . . . Parts Scanalyzed . | . . . Part Schematics Acquired . | . . . Parts Damaged . | . . . Bothacking | -11 -10 -10 ------------ Run | Yrd Mat Sub Used RIF Installer . | . . . Robots Hacked . | . . . Non-combat . | . . . Combat . | . . . Robot Hacks Applied . | . . . Relay Couplers Released . | . . . Fabnet Peak Effective % . | . . . Robots Rewired . | . . . Allies Hacked . | . . . Hacks Repelled . | . . . Allies | -11 -10 -10 -------- Run | Yrd Mat Sub Total Allies . | . . . Largest Group . | . . . Highest-Rated Group . | . . . Highest-Rated Ally . | . . . Total Orders . | . . . Ally Attacks . | . . . Total Damage . | . . . Kills . | . . . Allies Corrupted . | . . . Allies Melted . | . . . Intel | -11 -10 -10 ------- Run | Yrd Mat Sub Active Infowar (turns) 2760 | 69 1678 1013 Terrain 713 | 69 644 . Structural 1379 | . 447 932 Seismic 2236 | 26 1226 984 T.N.C. 5 | . 5 . Robot Analysis Total 1 | . 1 . Derelict Logs Recovered 1 | . . 1 Drone Launches . | . . . Drone Recoveries . | . . . Exploration | -11 -10 -10 ------------- Run | Yrd Mat Sub Turns Passed 5862 | 144 1679 4039 Spaces Moved 2430 | 88 1155 1187 Core 453 | 10 2 441 Treads 300 | . . 300 Legs 1409 | 77 1153 179 Wheels 268 | 1 . 267 Hover . | . . . Flight . | . . . Fastest Speed 50 | 50 120 110 Average Speed 199 | 112 120 283 Slowest Speed 550 | 120 150 550 Overloaded Moves . | . . . Propulsion Burnouts . | . . . Robots Hopped . | . . . Potential Cave-ins . | . . . Cave-ins Triggered . | . . . Exploration Rate (%) 53 | 3 99 57 Regions Visited 2 Branch Regions 1 Pre-discovered Areas 2 | . 2 . Known Exits Taken 1 | . 1 . Unknown Exits Taken 1 | 1 . . Scrap Searched 9 | . . 9 Spaces Dug 6 | . 6 . Terrain Destroyed 37 | . 15 22 Melee . | . . . Projectile 7 | . 6 1 AOE 30 | . 9 21 Terrain Rammed . | . . . Walls Destroyed . | . . . Machines Disabled . | . . . Actions | -11 -10 -10 --------- Run | Yrd Mat Sub Total 3210 | 112 1315 1783 Wait 526 | . 48 478 Move 2428 | 87 1154 1187 Hop . | . . . Pick Up 25 | 5 8 12 Fast Attach 19 | 8 5 6 Attach 8 | . 3 5 Detach 5 | 1 2 2 Swap 33 | . 9 24 Drop 34 | 1 13 20 Fire 130 | 10 72 48 Melee . | . . . Ram . | . . . Kick 1 | . 1 . Crush . | . . . Escape Stasis . | . . . Rewire . | . . . Trap . | . . . Miscellaneous 1 | . . 1 Route ------- -11/Scrapyard -10/Materials (discovered 5 exits: *Mat x3 / [*Min] / *Sub) -10/Subcaves (discovered 3 exits: *Mat x2 / Rec) History --------- Turn | Location | Event 11 | -11/Scrapyard | Discovered new exit (range 15) 145 | -11/Scrapyard | Entered Materials 322 | -10/Materials | Build established: Mutant 536 | -10/Materials | Discovered new exit (range 7) 577 | -10/Materials | Discovered new exit (range 15) 598 | -10/Materials | Central database locked down 724 | -10/Materials | Learned Storage emergency access door positions 769 | -10/Materials | Identified exit to Subcaves 769 | -10/Materials | Identified exit to Materials 828 | -10/Materials | Loaded intel: 28 trap records 844 | -10/Materials | Learned location of Recycling (-9) 848 | -10/Materials | Learned location of 2 exits from Subcaves 863 | -10/Materials | Loaded intel: 1 repair station location 920 | -10/Materials | Learned location of Subcaves (-10) 1068 | -10/Materials | Repaired Lgt. Treads 1186 | -10/Materials | Build established: Scavenger-Mutant 1664 | -10/Materials | Build established: Mutant 1824 | -10/Materials | Entered Subcaves 1825 | -10/Subcaves | Identified exit to Materials 1825 | -10/Subcaves | Identified exit to Recycling 2072 | -10/Subcaves | Core integrity fell below 50% 2155 | -10/Subcaves | Lost 3 parts (1p1n1w) 2896 | -10/Subcaves | Core integrity fell below 20% 3591 | -10/Subcaves | Build established: Subdweller-Mutant 4134 | -10/Subcaves | Learned Materials security intel 4965 | -10/Subcaves | Shifting Twisted Machinery released Mak. Kinetic Plating 5165 | -10/Subcaves | Discovered exit to Materials (range 9) 5582 | -10/Subcaves | Shifting Twisted Machinery released Battle Rifle 5863 | -10/Subcaves | Destroyed by YY-XRM(R) with Subdweller Beam Cannon Last Messages --------------- 04527_ Acquired Shrapnel Trap. 04529_ Subatomizers dissect the Sub. Optics. 04647_ S-10 Pest destroyed. 04650_ Destroyed Lgt. Ion Engine. 04654_ S-10 Pest destroyed. 04657_ Dropped Broken Sub. Monowheel. 04661_ Lgt. Ion Engine fries itself beyond repair. 04665_ Flight Unit fries itself beyond repair. 04688_ The unstable cave ceiling collapses. 04691_ Acquired Broken Sub. Monowheel. Mak. Kinetic Plating falls loose from the Twisted Machinery. 05165_ EXIT=FOUND: MATERIALS Battle Rifle falls loose from the Twisted Machinery. 05856_ 69-2N2(R) destroyed. 05860_ Subatomizers dissect the Sub. Power Source. 05861_ Scrap Shield destroyed. Map ----- +----------------------------------------------------+ | ?????????????????????????????????????????????????? | | ?????????????????????????????????????????????????? | | ?????????????????????????????????????????????????? | | ?????????????????????????????????????????????????? | | ?????????????????????????????????????????????????? | | ?????????????????????????????????????????????????? | | ?????????????????????????????????????????????????? | | ?????????????????????????????????????????????????? | | ?????????????????????????????????????????????????? | | ?????????????????????????????????????????????????? | | ?????????????????????????????????????????????????? | | ?????????????????????????????????????????????????? | | ?????????????????????????????????????????????????? | | ?????????????????????????????????????????????????? | | ???????????????????????##########????????????????? | | ???????????????????????;# ##???????????????? | | ???????????????????????; ##??????????????? | | ??????????????????????? R*!;; #??????????????? | | ???????????????????????#;%!;;# ???????????????? | | ??????????????????????##;& ;;# #????????????##### | | ?????????????????????##; ;;; #?????????????# | | ???????????????##?????; ;;; ##????????????# | | ?????????????### ##?## ##???????????# | | ?????????????# ## ###?????????##### | | ??????????????# ;; ##????????????? | | ??????????????# @ #????????????? | | ??????????????# #?????????????? | | ??????????????## ;# " #?????????????? | | ???????????????## ;#"""#?????????????? | | ????????????????## ;;"""#????###??????? | | ?????????????????# ## ""#????# ######## | | ?????????????????# ?# " ##??## ## # | | ???????????????? ??# " ##?# | | ??????????????# ??? #;; " #?#!""""" | | ??????????????# ????### ### """"### | | ?????????????# ???????# "" """"#?## | | ?????????????# ????##?## [" """##?## | | ?????????????# ?????# ## "" ""##?##"" | | ????????????????????# " #??#" | | ???????????????????## ## "" " ""#??# | | ???????????????????# ### """" """" #??# | | ???????????????????## ### """""" #?# | | ????????????????????### ###### #?# | | ??????????????????????## #????## #?# | | ???????????????????????## #?????? #?# # | | ????????????????????????# ##??????# ?# # | | ????????????????????????## #????????##### # | | ?????????????????????????### ####????????????# ## | | ???????????????????????????###???????????????# ##? | | ?????????????????????????????????????????????##??? | +----------------------------------------------------+ Best States ------------- Heat Dissipation 25 Energy Generation 15 Energy Capacity 250 Matter Stores 300 Matter Capacity 300 Sight Range 16 Terrain Scan Range 16 Terrain Scan Density 10 Armor Coverage 800 Core Shielding 20 Evasion (%) 55 Targeting Accuracy 5 Recoil Reduction 2 Item Schematics ----------------- None Robot Schematics ------------------ M-13 Machinist | -10/Materials | Hacked Fabricated ------------ Nothing Repaired ---------- Lgt. Treads | 11% | -10/Materials Studied --------- None Alien Tech Used ----------------- None Achievements -------------- None Challenges ------------ None Game ------ Seed MiningSupersonicRefractor Manual? 0 Play Time 00:40:12 Cumulative 99.9 hours Start 2026.02.08 @ 21:16:06 End 2026.02.08 @ 21:56:05 Sessions 1 Manual Loads 0 Difficulty Rogue Special Mode None Game No. 38 Rogue 37 Adventurer 1 Explorer 0 Win Type - Total 2 Types 1/0/1/0/0/0/0/0/0/0 Lore% 43 Gallery% 44 Achievement% 39 Wizard Run 0 Options --------- Layout 2 ASCII 0 Keyboard 1 Movement Vi Keybinds 1 Fullscreen 2 Font 32/Terminus Map View 50x44 Zoom Use 0% Tactical HUD 1 Map Filters NONE Filters NONE Steam 1 RUN: 09ca5739-f515-40f8-a978-7bfb05516fcd